bitfinex/quotes_BTCUSD_20250614
["timestamp","ask_amount","ask_price","bid_price","bid_amount"]
[1749870690229,5.60151144,105360.0,105350.0,0.03971244]
[1749870690442,5.60151144,105360.0,105350.0,0.05528757]
[1749870690890,5.60151144,105360.0,105350.0,0.04861252]
[1749870691103,5.60151144,105360.0,105350.0,0.04638749]
[1749870691323,5.60151144,105360.0,105350.0,0.06418764]
[1749870692624,5.60151144,105360.0,105350.0,0.04638749]
[1749870692839,5.58551144,105360.0,105350.0,0.06418764]
[1749870693058,5.58551144,105360.0,105350.0,0.07938764]
[1749870693759,5.58551144,105360.0,105350.0,0.09458752]
[1749870694181,5.58551144,105360.0,105350.0,0.09458611]
[1749870694398,5.58551144,105360.0,105350.0,0.09458424]
[1749870694626,5.58551144,105360.0,105350.0,0.07678416]
[1749870694844,5.58551144,105360.0,105350.0,0.08568233]
[1749870695500,5.58551144,105360.0,105350.0,0.07900871]
[1749870695721,5.58551144,105360.0,105350.0,0.0945805]
[1749870695951,5.58551144,105360.0,105350.0,0.08790688]
[1749870696160,5.39307144,105360.0,105350.0,0.09458049]
[1749870696387,5.58551144,105360.0,105350.0,0.09458048]
[1749870696597,5.58551144,105360.0,105350.0,0.08790686]
[1749870696806,5.58551144,105360.0,105350.0,0.09458048]
[1749870697017,5.58551144,105360.0,105350.0,0.08790686]
[1749870697244,5.58551144,105360.0,105350.0,0.09458048]
[1749870697454,5.58551144,105360.0,105350.0,0.08790686]
[1749870697688,5.58547144,105360.0,105350.0,0.08568232]
[1749870697901,5.58547144,105360.0,105350.0,0.09458045]
[1749870698112,5.39307144,105360.0,105350.0,0.25772936]
[1749870698325,5.56547144,105360.0,105350.0,0.2850171]
[1749870698550,5.56547144,105360.0,105350.0,0.28783543]
[1749870698762,5.56547144,105360.0,105350.0,0.27671326]
[1749870699011,5.34547144,105360.0,105350.0,0.31349258]
[1749870699226,4.97273689,105360.0,105350.0,0.31631087]
[1749870699435,0.23687306,105360.0,105350.0,0.32298241]
[1749870699647,0.22738189,105360.0,105350.0,0.32298187]
[1749870699871,0.23687306,105360.0,105350.0,0.31630861]
[1749870700089,0.03498135,105360.0,105350.0,0.32298138]
[1749870700342,0.07414135,105360.0,105350.0,0.41922318]
[1749870700553,0.08363234,105360.0,105350.0,0.4014291]
[1749870700775,0.08363234,105360.0,105350.0,0.41922338]
[1749870700987,0.08363234,105360.0,105350.0,0.41922381]
[1749870701211,0.08363234,105360.0,105350.0,0.39475632]
[1749870701427,0.08363234,105360.0,105350.0,0.40142927]
[1749870701662,0.08363234,105360.0,105350.0,0.41922378]
[1749870702087,0.08363234,105360.0,105350.0,0.41255084]
[1749870702296,0.07414135,105360.0,105350.0,0.40142926]
[1749870702509,0.08363234,105360.0,105350.0,0.41922378]
[1749870702724,0.08363234,105360.0,105350.0,0.40142926]
[1749870702935,0.08363234,105360.0,105350.0,0.41922376]
[1749870704118,0.08363234,105360.0,105350.0,0.41922373]
[1749870704334,0.07414135,105360.0,105350.0,0.41922373]
[1749870704544,0.07414135,105360.0,105350.0,0.40142923]
[1749870704756,0.08363234,105360.0,105350.0,0.41922368]
[1749870704968,0.07414135,105360.0,105350.0,0.41920136]
[1749870705175,0.07414135,105360.0,105350.0,0.41920127]
[1749870705391,0.08363243,105360.0,105350.0,0.41920127]
[1749870705565,0.0931236,105360.0,105350.0,0.41919289]
[1749870705808,0.10261486,105360.0,105350.0,0.41919289]
[1749870706028,0.29244022,105360.0,105350.0,0.18189071]
[1749870706334,5.41463698,105360.0,105350.0,0.03747689]
[1749870706544,5.41463698,105360.0,105350.0,0.03747751]
[1749870706545,5.42917783,105360.0,105350.0,0.03747751]
[1749870706816,5.42917783,105360.0,105350.0,0.06413946]
[1749870707045,5.42917783,105360.0,105350.0,0.0552525]
[1749870707263,5.42917783,105360.0,105350.0,0.06413982]
[1749870707481,5.23677783,105360.0,105350.0,0.06413982]
[1749870707699,5.42917783,105360.0,105350.0,0.03969969]
[1749870707938,5.42917783,105360.0,105350.0,0.05747433]
[1749870708373,5.42917783,105360.0,105350.0,0.06413982]
[1749870708585,5.42917783,105360.0,105350.0,0.05747433]
[1749870708791,5.42917783,105360.0,105350.0,0.04858701]
[1749870709078,5.42917783,105360.0,105350.0,0.03747785]
[1749870709309,5.42917783,105360.0,105350.0,0.05747431]
[1749870709526,5.42917783,105360.0,105350.0,0.03747786]
[1749870709761,5.42917783,105360.0,105350.0,0.05747431]
[1749870709974,5.42917783,105360.0,105350.0,0.03969969]
[1749870710243,5.42917783,105360.0,105350.0,0.04636518]
[1749870710470,5.42917783,105360.0,105350.0,0.06413982]
[1749870710914,5.42917783,105360.0,105350.0,0.06191799]
[1749870711159,5.42917783,105360.0,105350.0,0.07080152]
[1749870711359,5.42917783,105360.0,105350.0,0.05524493]
[1749870711580,5.42917783,105360.0,105350.0,0.07079111]
[1749870712023,5.42917783,105360.0,105350.0,0.06412847]
[1749870712241,5.42917783,105360.0,105350.0,0.05524494]
[1749870712460,5.54541959,105360.0,105350.0,0.06412848]
[1749870712692,5.54541959,105360.0,105350.0,0.055245]
[1749870712929,5.54541959,105360.0,105350.0,0.070792]
[1749870712930,5.88541959,105360.0,105350.0,0.070792]
[1749870713205,5.90809614,105360.0,105350.0,0.03747786]
[1749870713878,5.90809614,105360.0,105350.0,0.03547786]
[1749870713879,5.89209614,105360.0,105350.0,0.03547786]
[1749870714098,5.91209614,105360.0,105350.0,0.03647786]
[1749870714321,5.92509614,105360.0,105350.0,0.03747786]
[1749870714540,0.98734114,105360.0,105350.0,0.03747786]
[1749870714757,5.92508446,105360.0,105350.0,0.03747786]
[1749870716553,5.71268446,105360.0,105350.0,0.03747786]
[1749870716765,5.17956279,105360.0,105350.0,0.06827786]
[1749870717227,5.17956279,105360.0,105350.0,0.16451962]
[1749870717452,0.28096779,105360.0,105350.0,0.16451962]
[1749870717661,0.28096779,105360.0,105350.0,0.18228379]
[1749870717872,0.28096689,105360.0,105350.0,0.16451962]
[1749870718087,0.23231599,105360.0,105350.0,0.41961275]
[1749870718312,0.34292525,105370.0,105360.0,0.23339806]
[1749870718527,0.34292525,105370.0,105360.0,0.70280129]
[1749870718738,0.34292525,105370.0,105360.0,0.70279974]
[1749870718955,0.34292525,105370.0,105360.0,0.77870959]
[1749870719386,0.3619048,105370.0,105360.0,0.74196957]
[1749870719650,0.3524148,105370.0,105360.0,0.48441006]
[1749870719866,0.38088435,105370.0,105360.0,0.69321978]
[1749870720079,0.57069295,105370.0,105360.0,0.6837291]
[1749870720288,0.38088561,105370.0,105360.0,0.68504]
[1749870720501,0.39037597,105370.0,105360.0,0.6945309]
[1749870720709,0.39037597,105370.0,105360.0,0.73020225]
[1749870721216,0.39137597,105370.0,105360.0,0.7025309]
[1749870721429,0.39137597,105370.0,105360.0,0.7175309]
[1749870721661,0.36290516,105370.0,105360.0,0.73520225]
[1749870721869,0.37239534,105370.0,105360.0,0.73520224]
[1749870722077,0.3818857,105370.0,105360.0,0.7175309]
[1749870722282,0.3818857,105370.0,105360.0,0.73520227]
[1749870722495,0.3818857,105370.0,105360.0,0.73520228]
[1749870722928,0.3818857,105370.0,105360.0,0.7175309]
[1749870723130,0.3818857,105370.0,105360.0,0.73520228]
[1749870723352,0.38188561,105370.0,105360.0,0.7175309]
[1749870723765,0.37239534,105370.0,105360.0,0.7175309]
[1749870723921,0.37239534,105370.0,105360.0,0.73520228]
[1749870724136,0.38188561,105370.0,105360.0,0.7175309]
[1749870724332,0.38188561,105370.0,105360.0,0.73519412]
[1749870724538,0.38188561,105370.0,105360.0,0.73519421]
[1749870724756,0.38188561,105370.0,105360.0,0.73523267]
[1749870725139,0.57169295,105370.0,105360.0,0.73523267]
[1749870725357,0.54322286,105370.0,105360.0,0.14974176]
[1749870725543,0.54322286,105370.0,105360.0,0.05580168]
[1749870725717,0.54322286,105370.0,105360.0,0.0381]
[1749870725930,0.69642286,105370.0,105360.0,0.0381]
[1749870727543,0.69642286,105370.0,105360.0,0.023]
[1749870727969,0.69642286,105370.0,105360.0,0.039]
[1749870729870,0.69642286,105370.0,105360.0,0.04849126]
[1749870730482,0.69642286,105370.0,105360.0,0.2478077]
[1749870731102,0.69642286,105370.0,105360.0,0.24780779]
[1749870731968,0.69642286,105370.0,105360.0,0.25729887]
[1749870732193,5.63417786,105370.0,105360.0,0.023]
[1749870742423,5.63417786,105370.0,105360.0,0.0391]
[1749870744544,5.63417786,105370.0,105360.0,0.023]
[1749870744754,5.64937786,105370.0,105360.0,0.023]
[1749870745409,5.63417786,105370.0,105360.0,0.023]
[1749870746069,5.63417786,105370.0,105360.0,0.0391]
[1749870749121,5.67333786,105370.0,105360.0,0.0391]
[1749870750423,5.67333786,105370.0,105360.0,0.047507]
[1749870750636,5.67333786,105370.0,105360.0,0.0391]
[1749870755333,0.54322286,105370.0,105360.0,0.25351662]
[1749870755547,0.35341525,105370.0,105360.0,0.38772198]
[1749870755773,0.41155507,105370.0,105360.0,0.38772198]
[1749870756416,0.35341489,105370.0,105360.0,0.45901865]
[1749870756630,0.41155471,105370.0,105360.0,0.45901865]
[1749870756843,0.4210448,105370.0,105360.0,0.44122414]
[1749870757053,0.4210448,105370.0,105360.0,0.45901869]
[1749870757264,0.4210448,105370.0,105360.0,0.40551653]
[1749870757472,0.4210448,105370.0,105360.0,0.38772198]
[1749870757473,0.41155471,105370.0,105360.0,0.38772198]
[1749870757690,0.41155471,105370.0,105360.0,0.40551652]
[1749870758117,0.41155471,105370.0,105360.0,0.38772198]
[1749870758554,0.42104489,105370.0,105360.0,0.40551652]
[1749870758767,0.42104489,105370.0,105360.0,0.38772198]
[1749870759042,0.42104489,105370.0,105360.0,0.40551652]
[1749870759975,0.41155471,105370.0,105360.0,0.40551652]
[1749870760194,0.42104489,105370.0,105360.0,0.40551652]
[1749870760749,0.41155471,105370.0,105360.0,0.40547583]
[1749870760973,0.42104489,105370.0,105360.0,0.40547583]
[1749870761613,0.42104489,105370.0,105360.0,0.38772198]
[1749870761824,0.42104489,105370.0,105360.0,0.40547583]
[1749870762037,0.40206471,105370.0,105360.0,0.40547583]
[1749870762255,0.41155471,105370.0,105360.0,0.38772198]
[1749870762463,0.40206471,105370.0,105360.0,0.40547583]
[1749870762677,0.40206471,105370.0,105360.0,0.38772198]
[1749870762864,0.41155471,105370.0,105360.0,0.40547583]
[1749870763571,0.41155462,105370.0,105360.0,0.40547583]
[1749870763790,0.41155462,105370.0,105360.0,0.38772198]
[1749870764000,0.41155462,105370.0,105360.0,0.40547583]
[1749870764670,0.41155462,105370.0,105360.0,0.38772198]
[1749870764880,0.41155462,105370.0,105360.0,0.40547583]
[1749870765162,0.41155462,105370.0,105360.0,0.38772198]
[1749870765374,0.4210448,105370.0,105360.0,0.40547583]
[1749870765575,0.41155462,105370.0,105360.0,0.40547583]
[1749870765781,0.42104471,105370.0,105360.0,0.40547583]
[1749870766417,0.42104471,105370.0,105360.0,0.40546616]
[1749870767102,0.42104471,105370.0,105360.0,0.38772198]
[1749870767341,0.42104471,105370.0,105360.0,0.40546616]
[1749870767775,0.42104471,105370.0,105360.0,0.38772198]
[1749870768288,0.41155462,105370.0,105360.0,0.38772198]
[1749870768501,0.42104471,105370.0,105360.0,0.38772198]
[1749870770085,0.42104471,105370.0,105360.0,0.40546616]
[1749870770462,0.42104471,105370.0,105360.0,0.55866616]
[1749870771208,0.43053489,105370.0,105360.0,0.55866616]
[1749870771417,0.42104525,105370.0,105360.0,0.5586663]
[1749870771641,0.42104534,105370.0,105360.0,0.5586663]
[1749870772058,0.4305357,105370.0,105360.0,0.37426648]
[1749870772265,0.42104534,105370.0,105360.0,0.3742659]
[1749870772473,0.42104534,105370.0,105360.0,0.38996596]
[1749870772679,0.42104534,105370.0,105360.0,0.37222153]
[1749870772889,0.61085268,105370.0,105360.0,0.38047533]
[1749870773102,0.61085268,105370.0,105360.0,0.3627309]
[1749870773307,0.42104534,105370.0,105360.0,0.38997729]
[1749870773741,0.42104534,105370.0,105360.0,0.42119245]
[1749870774188,0.42104534,105370.0,105360.0,0.43894857]
[1749870774602,0.42104534,105370.0,105360.0,0.43894856]
[1749870775039,0.42104534,105370.0,105360.0,0.42119245]
[1749870775260,0.42104534,105370.0,105360.0,0.43894899]
[1749870775691,0.42104534,105370.0,105360.0,0.42119245]
[1749870775898,0.42104534,105370.0,105360.0,0.43894898]
[1749870776115,0.42104534,105370.0,105360.0,0.42119245]
[1749870776327,0.42104534,105370.0,105360.0,0.43894877]
[1749870776538,0.42104534,105370.0,105360.0,0.42119245]
[1749870777002,0.42104534,105370.0,105360.0,0.43894877]
[1749870777192,0.42104534,105370.0,105360.0,0.43894898]
[1749870777469,0.42104534,105370.0,105360.0,0.3899777]
[1749870777880,0.42104534,105370.0,105360.0,0.37222117]
[1749870778098,0.42104534,105370.0,105360.0,0.3899777]
[1749870778321,0.42104534,105370.0,105360.0,0.37222117]
[1749870778542,0.42104534,105370.0,105360.0,0.4049777]
[1749870778740,0.42104534,105370.0,105360.0,0.40501064]
[1749870779625,0.42104534,105370.0,105360.0,0.38722117]
[1749870779839,0.42104534,105370.0,105360.0,0.40501064]
[1749870780692,0.42104534,105370.0,105360.0,0.38722117]
[1749870780902,0.42104534,105370.0,105360.0,0.40501064]
[1749870784051,0.42104534,105370.0,105360.0,0.38722117]
[1749870784270,0.42104534,105370.0,105360.0,0.40501069]
[1749870784925,0.42104534,105370.0,105360.0,0.40501049]
[1749870785159,0.41155507,105370.0,105360.0,0.38722117]
[1749870785389,0.42104525,105370.0,105360.0,0.40501041]
[1749870785643,0.42104525,105370.0,105360.0,0.38722117]
[1749870786105,0.42104525,105370.0,105360.0,0.40501043]
[1749870786328,0.36290462,105370.0,105360.0,0.40501043]
[1749870786547,0.40206462,105370.0,105360.0,0.40501038]
[1749870786792,0.41155462,105370.0,105360.0,0.40501038]
[1749870787219,0.41155462,105370.0,105360.0,0.40501009]
[1749870787449,0.41155462,105370.0,105360.0,0.40501008]
[1749870787672,0.41155453,105370.0,105360.0,0.38722117]
[1749870787891,0.41155453,105370.0,105360.0,0.40500994]
[1749870788107,0.41155453,105370.0,105360.0,0.38722117]
[1749870788328,0.41155453,105370.0,105360.0,0.40500997]
[1749870788556,0.42104471,105370.0,105360.0,0.40500997]
[1749870788767,0.42104471,105370.0,105360.0,0.54042117]
[1749870788981,0.42104471,105370.0,105360.0,0.55821028]
[1749870789191,0.41155453,105370.0,105360.0,0.55821028]
[1749870789476,0.42104471,105370.0,105360.0,0.55821035]
[1749870789689,0.34392525,105370.0,105360.0,0.54042117]
[1749870789898,0.39257498,105370.0,105360.0,0.55821028]
[1749870790103,0.39257498,105370.0,105360.0,0.55821026]
[1749870790329,0.39257498,105370.0,105360.0,0.54042117]
[1749870790535,0.39257498,105370.0,105360.0,0.55821654]
[1749870790741,0.39257498,105370.0,105360.0,0.64523126]
[1749870790942,0.39257498,105370.0,105360.0,0.62743627]
[1749870791151,0.39257498,105370.0,105360.0,0.64523114]
[1749870791363,0.39257498,105370.0,105360.0,0.62743627]
[1749870791572,0.39257498,105370.0,105360.0,0.64523113]
[1749870792010,0.39257498,105370.0,105360.0,0.62743627]
[1749870792237,0.39257498,105370.0,105360.0,0.55821595]
[1749870792713,0.34392525,105370.0,105360.0,0.55821593]
[1749870792934,0.39257489,105370.0,105360.0,0.55821593]
[1749870793145,0.39257489,105370.0,105360.0,0.55821592]
[1749870793785,0.39257489,105370.0,105360.0,0.54042117]
[1749870794023,0.39257489,105370.0,105360.0,0.55821592]
[1749870794533,0.39257489,105370.0,105360.0,0.55821594]
[1749870794736,0.39257489,105370.0,105360.0,0.54042117]
[1749870794949,0.39257489,105370.0,105360.0,0.55821594]
[1749870795237,0.39257489,105370.0,105360.0,0.55820257]
[1749870795579,0.39257489,105370.0,105360.0,0.54042117]
[1749870796002,0.39257489,105370.0,105360.0,0.55820261]
[1749870796193,0.39257489,105370.0,105360.0,0.54042117]
[1749870796820,0.40206462,105370.0,105360.0,0.54042117]
[1749870797083,0.40206462,105370.0,105360.0,0.55820306]
[1749870797632,0.39257489,105370.0,105360.0,0.55820306]
[1749870797844,0.39257489,105370.0,105360.0,0.55820274]
[1749870798050,0.39257489,105370.0,105360.0,0.55820268]
[1749870798477,0.39257489,105370.0,105360.0,0.54042117]
[1749870798895,0.38308525,105370.0,105360.0,0.54042117]
[1749870799156,0.39257489,105370.0,105360.0,0.55820263]
[1749870799347,0.39257489,105370.0,105360.0,0.55816263]
[1749870799556,0.39257489,105370.0,105360.0,0.54038117]
[1749870800189,0.39257489,105370.0,105360.0,0.55816294]
[1749870800320,0.4020648,105370.0,105360.0,0.40500294]
[1749870800526,0.4020648,105370.0,105360.0,0.54316296]
[1749870800748,0.40206471,105370.0,105360.0,0.52538117]
[1749870800999,0.41155471,105370.0,105360.0,0.52538117]
[1749870801200,0.41155471,105370.0,105360.0,0.54316312]
[1749870801423,0.41155471,105370.0,105360.0,0.52538117]
[1749870801834,0.40206471,105370.0,105360.0,0.54316311]
[1749870802041,0.4115548,105370.0,105360.0,0.54316311]
[1749870802246,0.41155471,105370.0,105360.0,0.54316311]
[1749870803547,0.41155471,105370.0,105360.0,0.54317648]
[1749870805140,0.42104489,105370.0,105360.0,0.54317648]
[1749870805344,0.4210448,105370.0,105360.0,0.54317648]
[1749870806857,0.4210448,105370.0,105360.0,0.52538117]
[1749870807003,0.4210448,105370.0,105360.0,0.54317648]
[1749870807361,0.4210448,105370.0,105360.0,0.52538117]
[1749870807580,0.41155471,105370.0,105360.0,0.52538117]
[1749870808412,0.42104489,105370.0,105360.0,0.54317648]
[1749870808637,0.42104489,105370.0,105360.0,0.52538117]
[1749870808835,0.41155471,105370.0,105360.0,0.54317648]
[1749870808955,0.41155471,105370.0,105360.0,0.52538117]
[1749870809160,0.41155471,105370.0,105360.0,0.54317648]
[1749870809575,0.41155471,105370.0,105360.0,0.52538117]
[1749870809785,0.4210448,105370.0,105360.0,0.54316895]
[1749870810577,0.4210448,105370.0,105360.0,0.52538117]
[1749870810790,0.4210448,105370.0,105360.0,0.54316895]
[1749870811208,0.4210448,105370.0,105360.0,0.52538117]
[1749870811380,0.4210448,105370.0,105360.0,0.54316895]
[1749870811589,0.4210448,105370.0,105360.0,0.52538117]
[1749870811793,0.4210448,105370.0,105360.0,0.54316895]
[1749870812347,0.4210448,105370.0,105360.0,0.52538117]
[1749870812574,0.4210448,105370.0,105360.0,0.54316895]
[1749870813519,0.4210448,105370.0,105360.0,0.52538117]
[1749870813674,0.4210448,105370.0,105360.0,0.54316895]
[1749870816787,0.43053498,105370.0,105360.0,0.52538117]
[1749870816997,0.43053498,105370.0,105360.0,0.54316895]
[1749870818100,0.4210448,105370.0,105360.0,0.54316895]
[1749870818300,0.4210448,105370.0,105360.0,0.52538117]
[1749870818504,0.41155471,105370.0,105360.0,0.52538117]
[1749870818682,0.41155471,105370.0,105360.0,0.54316895]
[1749870819335,0.42104489,105370.0,105360.0,0.54316895]
[1749870819462,0.42104489,105370.0,105360.0,0.52538117]
[1749870819828,0.42104489,105370.0,105360.0,0.54317033]
[1749870820037,0.42104489,105370.0,105360.0,0.52538117]
[1749870820251,0.42104489,105370.0,105360.0,0.54317033]
[1749870821009,0.42104489,105370.0,105360.0,0.52538117]
[1749870821425,0.42104489,105370.0,105360.0,0.54317033]
[1749870823591,0.42104489,105370.0,105360.0,0.52538117]
[1749870823828,0.42104489,105370.0,105360.0,0.54317033]
[1749870824267,0.41155471,105370.0,105360.0,0.54317033]
[1749870824501,0.42104489,105370.0,105360.0,0.54317033]
[1749870825434,0.42104489,105370.0,105360.0,0.54069033]
[1749870825655,0.41155471,105370.0,105360.0,0.54069033]
[1749870825952,0.42104489,105370.0,105360.0,0.54069033]
[1749870826163,0.4210448,105370.0,105360.0,0.54069033]
[1749870826574,0.4210448,105370.0,105360.0,0.52290117]
[1749870826786,0.4210448,105370.0,105360.0,0.54069648]
[1749870827204,0.4210448,105370.0,105360.0,0.52290117]
[1749870827481,0.4210448,105370.0,105360.0,0.54069648]
[1749870827891,0.4210448,105370.0,105360.0,0.52290117]
[1749870828105,0.4210448,105370.0,105360.0,0.54069648]
[1749870829353,0.4210448,105370.0,105360.0,0.52290117]
[1749870829977,0.4210448,105370.0,105360.0,0.54069646]
[1749870831263,0.4210448,105370.0,105360.0,0.52290117]
[1749870831473,0.43053498,105370.0,105360.0,0.52290117]
[1749870831687,0.43053498,105370.0,105360.0,0.54069646]
[1749870832119,0.43053561,105370.0,105360.0,0.54069646]
[1749870832335,0.43053561,105370.0,105360.0,0.51550609]
[1749870832589,0.43053561,105370.0,105360.0,0.5249966]
[1749870832792,0.43053561,105370.0,105360.0,0.52499648]
[1749870833675,0.43053561,105370.0,105360.0,0.50720117]
[1749870833889,0.43053561,105370.0,105360.0,0.52499648]
[1749870834731,0.43053561,105370.0,105360.0,0.54039648]
[1749870837967,0.43053561,105370.0,105360.0,0.55819179]
[1749870840138,0.43053561,105370.0,105360.0,0.54039648]
[1749870840354,0.43053561,105370.0,105360.0,0.55819179]
[1749870840561,0.43053615,105370.0,105360.0,0.55819178]
[1749870840767,0.43053615,105370.0,105360.0,0.54039648]
[1749870840979,0.43053615,105370.0,105360.0,0.55819178]
[1749870841200,0.62034349,105370.0,105360.0,0.52141513]
[1749870841415,0.62034349,105370.0,105360.0,0.50601513]
[1749870841626,0.61085349,105370.0,105360.0,0.52381044]
[1749870841841,0.42104615,105370.0,105360.0,0.53330107]
[1749870842754,0.42104615,105370.0,105360.0,0.54930107]
[1749870842969,0.42104615,105370.0,105360.0,0.54930106]
[1749870843185,0.42104615,105370.0,105360.0,0.54930107]
[1749870843848,0.42104615,105370.0,105360.0,0.54930106]
[1749870844060,0.42104615,105370.0,105360.0,0.54930092]
[1749870844700,0.42104615,105370.0,105360.0,0.53150576]
[1749870844938,0.42104615,105370.0,105360.0,0.54930092]
[1749870845358,0.42104615,105370.0,105360.0,0.53150576]
[1749870845993,0.42104615,105370.0,105360.0,0.54930092]
[1749870847658,0.42104615,105370.0,105360.0,0.53150576]
[1749870847866,0.42104615,105370.0,105360.0,0.54930092]
[1749870848472,0.61085349,105370.0,105360.0,0.53981029]
[1749870848883,0.61085349,105370.0,105360.0,0.52201513]
[1749870849092,0.61085349,105370.0,105360.0,0.53150585]
[1749870849297,0.61085349,105370.0,105360.0,0.54930101]
[1749870849616,0.61085349,105370.0,105360.0,0.54930096]
[1749870850786,0.42104615,105370.0,105360.0,0.53150585]
[1749870851015,0.42104615,105370.0,105360.0,0.54930096]
[1749870851234,0.42104615,105370.0,105360.0,0.53150585]
[1749870851861,0.42104615,105370.0,105360.0,0.54930096]
[1749870852836,0.42104615,105370.0,105360.0,0.53150585]
[1749870853246,0.42104615,105370.0,105360.0,0.54930096]
[1749870854344,0.42104615,105370.0,105360.0,0.53150585]
[1749870854503,0.42104615,105370.0,105360.0,0.54930096]
[1749870855506,0.42104615,105370.0,105360.0,0.53150585]
[1749870855709,0.42104615,105370.0,105360.0,0.54930096]
[1749870855891,0.42104615,105370.0,105360.0,0.53150585]
[1749870856091,0.42104615,105370.0,105360.0,0.54930096]
[1749870856631,0.61085349,105370.0,105360.0,0.54930096]
[1749870857539,0.61085349,105370.0,105360.0,0.55879159]
[1749870858497,0.61085349,105370.0,105360.0,0.5587916]
[1749870858881,0.61085349,105370.0,105360.0,0.54099648]
[1749870859126,0.61085349,105370.0,105360.0,0.5587916]
[1749870859537,0.42104615,105370.0,105360.0,0.5587916]
[1749870859781,0.42104615,105370.0,105360.0,0.55879174]
[1749870860220,0.42104615,105370.0,105360.0,0.55879173]
[1749870860471,0.61085349,105370.0,105360.0,0.38665038]
[1749870860705,0.61085349,105370.0,105360.0,0.5493011]
[1749870861176,0.61085349,105370.0,105360.0,0.54930111]
[1749870861874,0.6013634,105370.0,105360.0,0.53981039]
[1749870862076,0.6013634,105370.0,105360.0,0.52201513]
[1749870862291,0.6013634,105370.0,105360.0,0.53981039]
[1749870862497,0.6013634,105370.0,105360.0,0.52201513]
[1749870862737,0.6013634,105370.0,105360.0,0.53981039]
[1749870862961,0.6013634,105370.0,105360.0,0.52201513]
[1749870863465,0.6013634,105370.0,105360.0,0.53981039]
[1749870863919,0.60717322,105370.0,105360.0,0.15235233]
[1749870864133,0.59768295,105370.0,105360.0,0.35166901]
[1749870864366,0.60319259,105370.0,105360.0,0.03831531]
[1749870864595,5.54094759,105370.0,105360.0,0.03831531]
[1749870864825,5.54094759,105370.0,105360.0,0.05611211]
[1749870865053,5.54094759,105370.0,105360.0,0.05611223]
[1749870865288,5.54094759,105370.0,105360.0,0.05611346]
[1749870865723,5.54094759,105370.0,105360.0,0.056114]
[1749870865942,5.53994759,105370.0,105360.0,0.05059399]
[1749870866159,5.53994759,105370.0,105360.0,0.03279531]
[1749870866377,5.53994759,105370.0,105360.0,0.04159398]
[1749870866622,5.53994759,105370.0,105360.0,0.02779531]
[1749870866828,5.53994759,105370.0,105360.0,0.02179531]
[1749870868179,5.53994759,105370.0,105360.0,0.03959454]
[1749870868366,5.53994759,105370.0,105360.0,0.02179531]
[1749870868619,5.53994759,105370.0,105360.0,0.03959454]
[1749870869499,5.55448844,105370.0,105360.0,0.03959454]
[1749870869923,5.55448844,105370.0,105360.0,0.02179531]
[1749870870601,0.61673344,105370.0,105360.0,0.02179531]
[1749870871031,5.55448844,105370.0,105360.0,0.02179531]
[1749870871235,5.56397227,105370.0,105360.0,0.02179531]
[1749870871666,5.70764844,105370.0,105360.0,0.02179531]
[1749870873969,5.70764844,105370.0,105360.0,0.03952519]
[1749870874178,5.70764844,105370.0,105360.0,0.02179531]
[1749870874659,0.76989344,105370.0,105360.0,0.02179531]
[1749870874836,5.70764844,105370.0,105360.0,0.02179531]
[1749870875046,5.51532844,105370.0,105360.0,0.02179531]
[1749870875267,5.67806759,105370.0,105360.0,0.02179531]
[1749870877538,5.69436759,105370.0,105360.0,0.02179531]
[1749870880128,6.1451502,105370.0,105360.0,0.02179531]
[1749870881634,6.2450802,105370.0,105360.0,0.02179531]
[1749870881839,6.1451502,105370.0,105360.0,0.01779531]
[1749870882287,6.1521502,105370.0,105360.0,0.01779531]
[1749870882926,6.1501502,105370.0,105360.0,0.01779531]
[1749870883146,6.1571502,105370.0,105360.0,0.01879531]
[1749870890665,1.2193952,105370.0,105360.0,0.01879531]
[1749870890903,6.1571502,105370.0,105360.0,0.01879531]
[1749870891665,1.2193952,105370.0,105360.0,0.01879531]
[1749870891883,6.1571502,105370.0,105360.0,0.01879531]
[1749870892533,6.17982994,105370.0,105360.0,0.01879531]
[1749870896817,1.23707494,105370.0,105360.0,0.01879531]
[1749870897187,6.18182994,105370.0,105360.0,0.01879531]
[1749870897717,6.17482994,105370.0,105360.0,0.01779531]
[1749870897921,6.45426994,105370.0,105360.0,0.01879531]
[1749870898976,1.51651494,105370.0,105360.0,0.01879531]
[1749870899150,6.45426994,105370.0,105360.0,0.01879531]
[1749870901920,6.55419994,105370.0,105360.0,0.01879531]
[1749870902129,1.51651494,105370.0,105360.0,0.01879531]
[1749870902407,6.48259461,105370.0,105360.0,0.01879531]
[1749870902621,6.50138961,105370.0,105360.0,0.01879531]
[1749870907282,1.56363461,105370.0,105360.0,0.01879531]
[1749870907480,6.50138961,105370.0,105360.0,0.01879531]
[1749870910193,6.53919986,105370.0,105360.0,0.01879531]
[1749870910399,6.51087519,105370.0,105360.0,0.01879531]
[1749870911224,6.31859519,105370.0,105360.0,0.01879531]
[1749870911430,6.53326921,105370.0,105360.0,0.01779531]
[1749870911636,6.54126921,105370.0,105360.0,0.01879531]
[1749870912105,6.53426921,105370.0,105360.0,0.01879531]
[1749870912305,6.53826921,105370.0,105360.0,0.01879531]
[1749870912729,6.50987519,105370.0,105360.0,0.01879531]
[1749870912934,6.53826763,105370.0,105360.0,0.01879531]
[1749870913973,6.34598763,105370.0,105360.0,0.01879531]
[1749870914173,6.53826763,105370.0,105360.0,0.01879531]
[1749870916351,6.50987519,105370.0,105360.0,0.01879531]
[1749870916769,6.53826111,105370.0,105360.0,0.01879531]
[1749870925381,6.50987519,105370.0,105360.0,0.01879531]
[1749870926578,6.5382681,105370.0,105360.0,0.01879531]
[1749870927187,7.2382681,105370.0,105360.0,0.01879531]
[1749870929445,7.20987519,105370.0,105360.0,0.01879531]
[1749870931383,7.26659056,105370.0,105360.0,0.01879531]
[1749870931587,7.20987519,105370.0,105360.0,0.01879531]
[1749870931789,7.26659056,105370.0,105360.0,0.01879531]
[1749870933206,7.31659056,105370.0,105360.0,0.01879531]
[1749870934719,7.27878031,105370.0,105360.0,0.01879531]
[1749870941548,6.57878031,105370.0,105360.0,0.01879531]
[1749870943152,1.59102531,105370.0,105360.0,0.01879531]
[1749870943355,6.57878031,105370.0,105360.0,0.01879531]
[1749870943722,6.6453655,105370.0,105360.0,0.01879531]
[1749870944066,6.6290655,105370.0,105360.0,0.01879531]
[1749870944481,6.5945655,105370.0,105360.0,0.01879531]
[1749870944675,7.3445655,105370.0,105360.0,0.01879531]
[1749870945448,6.6445655,105370.0,105360.0,0.01879531]
[1749870946949,6.5945655,105370.0,105360.0,0.01879531]
[1749870947150,6.6445655,105370.0,105360.0,0.01879531]
[1749870948148,6.5945655,105370.0,105360.0,0.01879531]
[1749870948350,6.6445655,105370.0,105360.0,0.01879531]
[1749870948568,7.3445655,105370.0,105360.0,0.01879531]
[1749870949521,7.3454655,105370.0,105360.0,0.01879531]
[1749870949640,7.2954655,105370.0,105360.0,0.01879531]
[1749870949943,7.3454655,105370.0,105360.0,0.01879531]
[1749870951905,7.3290655,105370.0,105360.0,0.01879531]
[1749870952096,7.3448655,105370.0,105360.0,0.01879531]
[1749870953243,7.3290655,105370.0,105360.0,0.01879531]
[1749870953695,7.2790655,105370.0,105360.0,0.01879531]